bitfinex/quotes_BTCUSD_20220109
["timestamp","ask_amount","ask_price","bid_price","bid_amount"]
[1641742097187,1.11819995,41508.0,41500.0,0.58501998]
[1641742097386,0.029,41506.0,41500.0,0.58701998]
[1641742097587,0.029,41506.0,41500.0,0.58701997]
[1641742098589,0.6144581,41503.0,41500.0,0.58501998]
[1641742098789,0.6544581,41503.0,41500.0,0.58501998]
[1641742098989,0.8147311,41503.0,41500.0,0.58501998]
[1641742099237,0.0483,41502.0,41500.0,0.58501998]
[1641742099434,0.93269335,41501.0,41500.0,0.58501998]
[1641742099635,1.08269335,41501.0,41500.0,0.58501998]
[1641742099835,1.08269335,41501.0,41500.0,0.58485629]
[1641742100135,0.63591936,41501.0,41500.0,0.58485629]
[1641742100934,0.93591936,41501.0,41500.0,0.58485629]
[1641742101136,1.24852394,41501.0,41500.0,0.58485629]
[1641742101335,1.25652394,41501.0,41500.0,0.58485629]
[1641742101535,1.25531627,41501.0,41500.0,0.58485629]
[1641742103309,1.20531627,41501.0,41500.0,0.58485629]
[1641742103507,1.10531627,41501.0,41500.0,0.58485629]
[1641742103708,0.38948568,41501.0,41500.0,0.58485629]
[1641742104706,0.38148568,41501.0,41500.0,0.58485629]
[1641742105108,0.48148568,41501.0,41500.0,0.58485629]
[1641742105309,0.58848568,41501.0,41500.0,0.58485629]
[1641742105908,0.9897376,41501.0,41500.0,0.58485629]
[1641742106740,0.9827376,41501.0,41500.0,0.58485629]
[1641742106945,0.910283,41499.0,41498.0,0.00016351]
[1641742107141,0.86959015,41499.0,41498.0,0.00016351]
[1641742107341,0.86959015,41499.0,41492.0,0.00065412]
[1641742107342,1.00433015,41499.0,41492.0,0.00065412]
[1641742107542,0.50106269,41493.0,41492.0,0.00130824]
[1641742107741,0.24936269,41493.0,41492.0,0.00065412]
[1641742107942,0.0603,41484.0,41479.0,0.40977381]
[1641742108141,0.12428,41484.0,41479.0,0.40977381]
[1641742108342,0.12428,41484.0,41475.0,0.40977381]
[1641742108343,0.17428,41484.0,41475.0,0.40977381]
[1641742108542,0.16398,41484.0,41475.0,0.40977381]
[1641742108841,0.21228,41484.0,41475.0,0.40977381]
[1641742109042,2.24847698,41476.0,41475.0,0.40977381]
[1641742109241,2.24847698,41476.0,41471.0,0.41377381]
[1641742109741,2.24847698,41476.0,41472.0,0.00682]
[1641742110140,0.33541264,41475.0,41472.0,0.00682]
[1641742110389,0.07016,41475.0,41472.0,0.00682]
[1641742110590,1.55842906,41476.0,41472.0,0.00682]
[1641742111191,0.73664831,41476.0,41472.0,0.00682]
[1641742111391,0.74264831,41476.0,41472.0,0.00682]
[1641742111791,0.74264831,41476.0,41472.0,0.0069871]
[1641742112591,0.83664831,41476.0,41472.0,0.0069871]
[1641742113192,1.0,41475.0,41472.0,0.0069871]
[1641742113391,1.14241111,41475.0,41472.0,0.0069871]
[1641742113995,1.14241111,41475.0,41472.0,0.00682]
[1641742114248,0.52453939,41475.0,41472.0,0.00682]
[1641742115148,0.72453939,41475.0,41472.0,0.00682]
[1641742115347,0.73353939,41475.0,41472.0,0.00682]
[1641742115547,0.02,41474.0,41472.0,0.00682]
[1641742117353,0.031,41474.0,41472.0,0.00682]
[1641742118595,0.031,41474.0,41473.0,0.29800848]
[1641742118596,0.02,41474.0,41473.0,0.29800848]
[1641742119092,0.02,41474.0,41473.0,0.30482848]
[1641742119492,0.022,41474.0,41473.0,0.34482848]
[1641742120594,0.02,41474.0,41473.0,0.30482848]
[1641742121197,0.02,41474.0,41473.0,0.00682]
[1641742121393,0.023,41474.0,41473.0,0.04882]
[1641742122247,0.38687113,41474.0,41473.0,0.04882]
[1641742122637,0.38687113,41474.0,41473.0,0.00682]
[1641742122638,0.48387113,41474.0,41473.0,0.00682]
[1641742122840,0.58387113,41474.0,41473.0,0.00682]
[1641742123038,0.65663382,41474.0,41473.0,0.00682]
[1641742123438,0.72794882,41474.0,41473.0,0.00682]
[1641742123638,0.72794882,41474.0,41472.0,0.00682]
[1641742123838,0.38615262,41473.0,41472.0,0.00682]
[1641742124038,0.48615262,41473.0,41472.0,0.00682]
[1641742124238,0.48547262,41473.0,41472.0,0.00682]
[1641742125403,0.49547262,41473.0,41472.0,0.00682]
[1641742125790,0.49547262,41473.0,41471.0,0.004]
[1641742125791,0.00127208,41472.0,41471.0,0.004]
[1641742125989,0.74660543,41472.0,41471.0,0.004]
[1641742126389,0.89660543,41472.0,41471.0,0.004]
[1641742126590,0.89660543,41472.0,41471.0,0.00240218]
[1641742127491,0.90660543,41472.0,41471.0,0.00240218]
[1641742128290,0.3583,41472.0,41471.0,0.00240218]
[1641742128491,0.35953109,41472.0,41471.0,0.00240218]
[1641742128692,0.04953109,41472.0,41471.0,0.00240218]
[1641742128893,0.208619,41472.0,41471.0,0.00240218]
[1641742129137,0.0483,41472.0,41471.0,0.00240218]
[1641742129340,0.0583,41472.0,41471.0,0.00240218]
[1641742130338,0.0583,41472.0,41471.0,0.00040218]
[1641742131438,0.0743,41472.0,41460.0,0.38073393]
[1641742131639,0.1243,41472.0,41460.0,0.38073393]
[1641742131838,0.1743,41472.0,41460.0,0.38073393]
[1641742132642,0.1483,41472.0,41460.0,0.38073393]
[1641742133090,0.1483,41472.0,41461.0,9.496e-05]
[1641742133490,0.1613,41472.0,41461.0,9.496e-05]
[1641742134693,0.1483,41472.0,41461.0,9.496e-05]
[1641742135294,0.00021574,41469.0,41461.0,0.00016538]
[1641742135694,0.20031574,41469.0,41461.0,0.00016538]
[1641742135893,0.00021574,41469.0,41461.0,0.00016538]
[1641742136292,0.014,41472.0,41461.0,0.00016538]
[1641742136495,0.00021574,41467.0,41461.0,0.00016539]
[1641742136938,0.00021574,41467.0,41461.0,0.06047359]
[1641742137142,0.00021574,41467.0,41463.0,0.060307]
[1641742137343,0.00021574,41467.0,41465.0,0.43006049]
[1641742137542,0.00421574,41467.0,41465.0,0.43006049]
[1641742137742,0.004,41467.0,41465.0,0.43006049]
[1641742138539,0.004,41467.0,41465.0,0.7693172]
[1641742138741,0.07276269,41474.0,41465.0,0.7693172]
[1641742138941,0.38212828,41467.0,41465.0,0.7693172]
[1641742139144,0.38212828,41467.0,41465.0,0.43006049]
[1641742139542,0.07276269,41474.0,41472.0,0.05244044]
[1641742140599,0.20034,41475.0,41473.0,0.25700933]
[1641742141002,0.20055252,41475.0,41474.0,0.838673]
[1641742141499,0.22455252,41475.0,41474.0,0.78040317]
[1641742141696,0.00120223,41485.0,41474.0,0.73161263]
[1641742141895,0.00120223,41485.0,41475.0,0.36653298]
[1641742142096,0.00021268,41477.0,41475.0,0.36653298]
[1641742142294,0.20088,41491.0,41474.0,0.49293963]
[1641742142295,0.20088,41491.0,41479.0,0.46463842]
[1641742142495,0.20088,41491.0,41475.0,0.36653298]
[1641742142895,0.060292,41490.0,41475.0,0.36653298]
[1641742143594,0.060292,41490.0,41475.0,0.44453298]
[1641742144239,0.00012103,41485.0,41477.0,0.33022336]
[1641742144439,0.00012103,41485.0,41475.0,0.44453298]
[1641742144840,0.00012103,41485.0,41475.0,0.36653298]
[1641742145043,0.20022103,41485.0,41475.0,0.36653298]
[1641742145442,0.00011871,41482.0,41475.0,0.38153298]
[1641742145643,0.00011871,41482.0,41478.0,0.32402823]
[1641742146441,0.00021338,41482.0,41478.0,0.31902823]
[1641742147443,0.00021338,41482.0,41478.0,0.32302823]
[1641742148093,0.00021338,41482.0,41478.0,0.38331598]
[1641742148296,0.00021338,41482.0,41478.0,0.72594122]
[1641742148494,0.00021338,41482.0,41478.0,0.72104122]
[1641742148692,0.00042676,41482.0,41478.0,0.71704122]
[1641742148992,0.00021338,41482.0,41478.0,0.71704122]
[1641742149193,0.00021338,41482.0,41478.0,0.71707945]
[1641742149393,0.00021338,41482.0,41478.0,0.72407945]
[1641742149796,0.0002075,41482.0,41478.0,0.72407945]
[1641742149994,0.0002075,41482.0,41478.0,0.38141598]
[1641742150598,0.0002075,41482.0,41478.0,0.007]
[1641742150798,0.00020414,41482.0,41474.0,0.00137336]
[1641742151000,0.00020414,41482.0,41474.0,0.0001639]
[1641742151200,0.05988364,41483.0,41474.0,0.0001639]
[1641742151638,0.05988364,41483.0,41474.0,0.0361639]
[1641742152039,0.05988364,41483.0,41474.0,0.036]
[1641742152640,0.05988364,41483.0,41472.0,0.30391411]
[1641742152839,0.12018564,41483.0,41472.0,0.30391411]
[1641742153039,0.22018564,41483.0,41472.0,0.30391411]
[1641742153439,0.22018564,41483.0,41472.0,0.35191411]
[1641742153643,0.50866341,41482.0,41472.0,0.35191411]
[1641742154040,0.60866341,41482.0,41472.0,0.35191411]
[1641742154642,0.60866341,41482.0,41472.0,0.30391411]
[1641742154844,0.40774422,41481.0,41472.0,0.30391411]
[1641742155041,0.50774422,41481.0,41472.0,0.30391411]
[1641742155243,0.60774422,41481.0,41475.0,0.00016716]
[1641742155695,0.2,41481.0,41475.0,0.00016716]
[1641742156296,0.45774422,41481.0,41475.0,0.00016716]
[1641742156497,0.45774422,41481.0,41476.0,0.00016715]
[1641742156695,0.55774422,41481.0,41476.0,0.00016715]
[1641742157496,0.15,41481.0,41476.0,0.00017043]
[1641742157896,0.05,41481.0,41476.0,0.00017043]
[1641742158097,0.60774422,41482.0,41476.0,0.00017043]
[1641742158601,0.43289426,41481.0,41476.0,0.00017043]
[1641742158801,0.99671316,41481.0,41476.0,0.00017043]
[1641742158996,1.09671316,41481.0,41476.0,0.00017043]
[1641742159246,0.50866341,41478.0,41476.0,0.00017043]
[1641742159547,0.50866341,41478.0,41476.0,0.00010081]
[1641742159548,0.75696341,41478.0,41476.0,0.00010081]
[1641742159747,0.07275514,41477.0,41476.0,0.0001613]
[1641742160545,0.44188682,41477.0,41476.0,0.0001613]
[1641742160747,0.95055023,41477.0,41472.0,0.05244044]
[1641742160946,1.05055023,41477.0,41472.0,0.05244044]
[1641742161447,1.06255023,41477.0,41472.0,0.05244044]
[1641742162246,0.55388682,41477.0,41472.0,0.05244044]
[1641742162648,0.54188682,41477.0,41472.0,0.05244044]
[1641742162890,0.44188682,41477.0,41472.0,0.05244044]
[1641742163095,0.05,41476.0,41472.0,0.05244044]
[1641742163291,0.44188682,41477.0,41472.0,0.05244044]
[1641742164194,0.44188682,41477.0,41472.0,0.05260746]
[1641742164593,0.07275514,41477.0,41472.0,0.05260746]
[1641742165397,0.61274735,41481.0,41472.0,0.05260746]
[1641742165794,0.00021569,41482.0,41472.0,0.05260746]
[1641742165995,0.00021569,41482.0,41478.0,0.24337191]
[1641742166193,0.00021569,41482.0,41474.0,0.06046498]
[1641742166394,0.00021155,41482.0,41474.0,0.00017029]
[1641742167058,0.00021155,41482.0,41476.0,0.24203837]
[1641742167662,0.00021155,41482.0,41476.0,0.30232437]
[1641742168060,0.99957691,41482.0,41476.0,0.30232437]
[1641742168460,0.99957691,41482.0,41476.0,0.24203837]
[1641742168859,0.99978517,41482.0,41476.0,0.24203837]
[1641742169058,0.99978517,41482.0,41479.0,0.35157228]
[1641742169259,0.99978517,41482.0,41479.0,0.41185728]
[1641742169463,0.99978517,41482.0,41480.0,0.2016487]
[1641742169861,0.99957691,41482.0,41480.0,0.2016487]
[1641742170059,0.99957691,41482.0,41480.0,0.26193376]
[1641742170261,0.99957691,41482.0,41480.0,0.37221176]
[1641742170507,0.99957691,41482.0,41481.0,0.00123091]
[1641742171607,0.99957691,41482.0,41481.0,1.10923091]
[1641742171807,0.99957691,41482.0,41481.0,1.54790391]
[1641742172008,0.99957691,41482.0,41481.0,1.69790391]
[1641742172407,0.99957691,41482.0,41481.0,1.67790391]
[1641742172610,0.99957691,41482.0,41481.0,1.49790391]
[1641742172807,0.20016,41492.0,41482.0,0.388673]
[1641742173007,0.20016,41492.0,41482.0,0.12055013]
[1641742173409,0.20016,41492.0,41481.0,0.00123091]
[1641742173609,0.20016,41492.0,41482.0,0.01]
[1641742173810,0.20016,41492.0,41487.0,0.26484261]
[1641742174242,0.20016,41492.0,41491.0,0.0012525]
[1641742174442,0.5102634,41496.0,41491.0,0.0012525]
[1641742175243,0.61322999,41498.0,41495.0,0.30578036]
[1641742175244,0.00048264,41498.0,41495.0,0.30578036]
[1641742175447,0.00011844,41496.0,41495.0,0.30578036]
[1641742176143,0.00011844,41496.0,41495.0,0.70578036]
[1641742176343,0.00011844,41496.0,41495.0,1.09445336]
[1641742176545,0.00021343,41498.0,41497.0,0.00122119]
[1641742176945,0.00021343,41498.0,41497.0,0.76147519]
[1641742177148,0.00021343,41498.0,41497.0,1.12782193]
[1641742177646,0.16293203,41500.0,41497.0,1.13582193]
[1641742178692,0.16271861,41500.0,41497.0,1.13582193]
[1641742178891,0.16271861,41500.0,41499.0,0.09169181]
[1641742179093,0.16271861,41500.0,41499.0,0.86047457]
[1641742179492,0.16271861,41500.0,41499.0,0.87147457]
[1641742179694,0.16271861,41500.0,41499.0,1.13172057]
[1641742180093,0.16271861,41500.0,41499.0,1.98002057]
[1641742180894,0.16271861,41500.0,41499.0,1.96902057]
[1641742181495,8.24e-06,41502.0,41501.0,0.388673]
[1641742181753,0.00083284,41508.0,41501.0,2.08026728]
[1641742181949,0.00083284,41508.0,41505.0,0.1]
[1641742182153,0.31208395,41509.0,41507.0,0.00127378]
[1641742182354,0.31208395,41509.0,41508.0,0.436973]
[1641742183150,0.31208395,41509.0,41508.0,0.536973]
[1641742183551,0.31208395,41509.0,41508.0,0.549973]
[1641742183753,0.00041001,41516.0,41508.0,0.92905546]
[1641742184151,0.00041001,41516.0,41508.0,0.88928846]
[1641742184353,0.00041001,41516.0,41508.0,0.449973]
[1641742184553,0.00012043,41511.0,41508.0,0.0613]
[1641742184855,0.00012043,41511.0,41509.0,0.38994343]
[1641742185051,0.00012043,41511.0,41510.0,0.39742904]
[1641742185252,0.00051046,41513.0,41511.0,0.34367571]
[1641742185503,0.00051046,41513.0,41512.0,0.37112723]
[1641742185804,0.00051046,41513.0,41512.0,0.75980023]
[1641742186004,0.00051046,41513.0,41512.0,0.488673]
[1641742186205,0.00051046,41513.0,41512.0,0.85207802]
[1641742187003,0.00051046,41513.0,41512.0,0.75207802]
[1641742187406,0.00051046,41513.0,41512.0,0.388673]
[1641742187606,0.00051046,41513.0,41512.0,0.402673]
[1641742188005,0.00051046,41513.0,41512.0,0.014]
[1641742188405,0.04552646,41513.0,41512.0,0.014]
[1641742188809,0.04552646,41513.0,41505.0,0.00126651]
[1641742189004,0.04552646,41513.0,41505.0,0.06151351]
[1641742189246,0.00051046,41513.0,41505.0,0.1217617]
[1641742189645,0.00051046,41513.0,41505.0,0.1467617]
[1641742190050,0.00072609,41513.0,41511.0,0.29966925]
[1641742190251,0.045016,41512.0,41511.0,0.29966925]
[1641742190550,0.00072609,41513.0,41511.0,0.29966925]
[1641742190946,0.00072609,41513.0,41512.0,0.68857]
[1641742191149,0.00051046,41513.0,41512.0,0.68857]
[1641742191447,0.00051046,41513.0,41512.0,1.03075455]
[1641742191649,0.00051046,41513.0,41512.0,0.69657]
[1641742192149,0.00051046,41513.0,41512.0,1.03662908]
[1641742192552,0.00051046,41513.0,41512.0,0.73662908]
[1641742193197,0.00051046,41513.0,41512.0,0.008]
[1641742193595,0.00051046,41513.0,41512.0,0.018]
[1641742193797,0.00051046,41513.0,41512.0,0.74968647]
[1641742194196,0.00051046,41513.0,41512.0,0.84968647]
[1641742194398,0.00051046,41513.0,41512.0,0.73468647]
[1641742194796,0.00051046,41513.0,41512.0,0.73168647]
[1641742195597,0.00051046,41513.0,41512.0,0.74068647]
[1641742196497,0.00051046,41513.0,41512.0,0.009]
[1641742196741,0.00051046,41513.0,41511.0,0.41115878]
[1641742197141,0.00051046,41513.0,41511.0,0.06148953]
[1641742197442,0.00051046,41513.0,41511.0,0.00125679]
[1641742197644,0.00051046,41513.0,41511.0,0.01425679]
[1641742198242,0.00051046,41513.0,41511.0,0.013]
[1641742198742,0.00051046,41513.0,41508.0,0.31737872]
[1641742198942,0.00021001,41513.0,41508.0,0.31737872]
[1641742199143,0.00308123,41519.0,41508.0,0.31737872]
[1641742199645,0.00308123,41519.0,41508.0,0.33437872]
[1641742200698,0.00308123,41519.0,41508.0,0.31737872]
[1641742201302,0.00308123,41519.0,41509.0,0.3450452]
[1641742201600,0.00308123,41519.0,41508.0,0.31737872]
[1641742201601,0.00308123,41519.0,41508.0,0.34737872]
[1641742203103,0.00021563,41516.0,41508.0,0.34754763]
[1641742203502,0.00021563,41516.0,41508.0,0.48016891]
[1641742204001,0.060254,41515.0,41508.0,0.48016891]
[1641742204242,0.045016,41514.0,41508.0,0.48016891]
[1641742204643,0.25034,41515.0,41508.0,0.48016891]
[1641742204841,0.30034,41515.0,41508.0,0.42016891]
[1641742205043,0.40034,41515.0,41508.0,0.42016891]
[1641742205645,0.060255,41514.0,41508.0,0.42016891]
[1641742206142,0.43034,41515.0,41508.0,0.42016891]
[1641742206843,0.40034,41515.0,41508.0,0.42016891]
[1641742207443,0.40034,41515.0,41508.0,0.42033205]
[1641742207645,0.40034,41515.0,41508.0,0.42016314]
[1641742208499,0.20034,41515.0,41508.0,0.42016314]
[1641742208698,0.0002082,41516.0,41508.0,0.42016314]
[1641742209298,0.07915948,41512.0,41508.0,0.42016314]
[1641742209500,0.07915948,41512.0,41508.0,0.42116314]
[1641742210902,0.07915948,41512.0,41508.0,0.42116315]
[1641742211099,0.07915948,41512.0,41508.0,0.42016315]
[1641742211299,0.12915948,41512.0,41508.0,0.42016315]
[1641742211502,0.12915948,41512.0,41508.0,0.42616315]
[1641742211944,0.12915948,41512.0,41508.0,0.42616334]
[1641742212743,0.12915948,41512.0,41508.0,0.42016334]
[1641742213446,0.12915948,41512.0,41509.0,0.3372533]
[1641742214245,0.12915948,41512.0,41511.0,0.0012555]
[1641742214445,0.05,41512.0,41511.0,0.0012555]
[1641742214643,0.12915948,41512.0,41511.0,0.0012555]
[1641742214848,0.12915948,41512.0,41511.0,0.33951578]
[1641742215247,0.00020845,41516.0,41511.0,0.33951578]
[1641742215493,0.00020845,41516.0,41515.0,0.23450258]
[1641742215693,0.04522445,41516.0,41515.0,0.23450258]
[1641742215893,0.00020845,41516.0,41515.0,0.23450258]
[1641742216294,0.00020845,41518.0,41515.0,0.23450258]
[1641742216693,0.00020845,41518.0,41516.0,0.33230923]
[1641742216894,0.00020845,41518.0,41515.0,0.23450258]
[1641742217094,0.00020845,41518.0,41516.0,0.00123442]
[1641742217394,0.00020845,41518.0,41517.0,0.37910158]
[1641742217713,0.001879,41519.0,41517.0,0.38036037]
[1641742217714,0.00089745,41519.0,41517.0,0.38036037]
[1641742217894,0.0011059,41519.0,41518.0,0.38857]
[1641742218093,0.0011059,41519.0,41518.0,0.48857]
[1641742218094,5.9e-06,41519.0,41518.0,0.48857]
[1641742218299,5.9e-06,41519.0,41518.0,0.548792]
[1641742218697,5.9e-06,41519.0,41518.0,0.75455912]
[1641742218895,0.00052002,41520.0,41518.0,0.75455912]
[1641742219344,0.00031001,41522.0,41521.0,0.00167776]
[1641742219543,0.00031001,41522.0,41521.0,0.39024776]
[1641742219742,0.00031001,41522.0,41521.0,0.7757293]
[1641742219942,0.00031001,41522.0,41521.0,0.8757293]
[1641742220141,0.00052002,41526.0,41521.0,1.2752397]
[1641742220345,0.00010003,41525.0,41521.0,1.2752397]
[1641742220744,0.00021561,41525.0,41524.0,0.29197281]
[1641742220945,0.00021561,41525.0,41524.0,1.53350307]
[1641742221250,0.01052002,41532.0,41526.0,0.02551]
[1641742221443,0.01052002,41532.0,41531.0,0.21452224]
[1641742221643,0.01052002,41532.0,41531.0,1.05022846]
[1641742221843,0.01041001,41532.0,41531.0,0.66907224]
[1641742222043,0.00020001,41537.0,41535.0,0.25]
[1641742222243,0.00441002,41539.0,41536.0,0.43687]
[1641742222447,0.00441002,41539.0,41537.0,0.00125677]
[1641742222646,0.00441002,41539.0,41538.0,0.43687]
[1641742222900,0.81214797,41545.0,41541.0,0.00122846]
[1641742222901,0.00052002,41545.0,41541.0,0.00122846]
[1641742223099,0.00052002,41545.0,41542.0,0.38857]
[1641742223300,0.00172224,41545.0,41542.0,0.38857]
[1641742223499,0.00071001,41543.0,41542.0,0.10125575]
[1641742223699,0.00071001,41543.0,41542.0,0.54912575]
[1641742223905,4.226e-05,41545.0,41544.0,0.00127668]
[1641742224103,0.0003,41550.0,41548.0,0.00129222]
[1641742224302,0.0001,41552.0,41549.0,1.07365696]
[1641742224500,0.0001,41552.0,41550.0,0.06145469]
[1641742224704,0.0001,41552.0,41551.0,0.38857]
[1641742224902,0.00019,41553.0,41551.0,0.81244892]
[1641742225101,0.00431001,41559.0,41553.0,0.38857]
[1641742225304,0.00517206,41559.0,41557.0,0.00123788]
[1641742225501,0.00517206,41559.0,41558.0,0.38857]
[1641742226001,0.00517206,41559.0,41558.0,0.72733009]
[1641742226405,0.00431001,41559.0,41558.0,0.48857]
[1641742226857,0.00431001,41559.0,41558.0,0.38857]
[1641742227655,0.00431001,41559.0,41558.0,0.39557]
[1641742227855,0.00431001,41559.0,41558.0,0.5918084]
[1641742228056,0.00431001,41559.0,41558.0,0.93544195]
[1641742228256,0.00161222,41565.0,41558.0,0.93544195]
[1641742228257,0.05431001,41579.0,41558.0,0.9418084]
[1641742228455,0.05431001,41579.0,41561.0,0.06016484]
[1641742228456,0.41191001,41574.0,41561.0,0.06016484]
[1641742228655,0.20031001,41574.0,41558.0,0.2032384]
[1641742228856,0.10041001,41573.0,41558.0,0.1962384]
[1641742229057,0.30188085,41572.0,41558.0,0.1962384]
[1641742229355,0.04502081,41572.0,41558.0,0.1962384]
[1641742229555,0.04522949,41572.0,41562.0,0.00017024]
[1641742229957,0.04522949,41572.0,41565.0,0.29078352]
[1641742230397,0.04522949,41572.0,41562.0,0.00017024]
[1641742230600,0.04522949,41572.0,41566.0,0.00017022]
[1641742231197,0.00733089,41571.0,41566.0,0.00017022]
[1641742231701,0.0002,41574.0,41566.0,0.00117022]
[1641742231901,0.01093455,41582.0,41581.0,2.33728861]
[1641742232099,0.30441001,41589.0,41588.0,0.47988019]
[1641742232497,0.0043,41599.0,41589.0,0.388071]
[1641742232698,0.0008621,41599.0,41595.0,0.2609912]
[1641742232898,0.0008621,41599.0,41595.0,0.33082338]
[1641742233100,0.0008621,41599.0,41598.0,0.00122953]
[1641742233300,0.0159554,41603.0,41598.0,0.00122953]
[1641742233301,0.7918,41606.0,41599.0,0.15]
[1641742233500,0.0002,41607.0,41606.0,0.27212199]
[1641742233700,0.0001,41611.0,41606.0,0.78305299]
[1641742233901,0.90875425,41618.0,41610.0,0.6760868]
[1641742234146,0.90875425,41618.0,41617.0,0.00121867]
[1641742234350,0.0161182,41621.0,41617.0,0.16820867]
[1641742234547,2.0,41636.0,41619.0,0.5]
[1641742234747,0.0493947,41639.0,41624.0,0.0012081]
[1641742234948,0.0443947,41639.0,41634.0,0.00112043]
[1641742235148,0.0443947,41639.0,41637.0,0.00118927]
[1641742235349,0.0443947,41639.0,41637.0,0.00098927]
[1641742235547,0.30304892,41638.0,41634.0,0.00122817]
[1641742235747,0.30304892,41638.0,41637.0,0.00167]
[1641742235947,0.30304892,41638.0,41637.0,0.00145999]
[1641742236148,0.30304892,41638.0,41637.0,0.00125999]
[1641742236447,0.00083464,41640.0,41637.0,2.5829148]
[1641742236648,0.00083459,41646.0,41639.0,0.9]
[1641742236849,0.00083459,41646.0,41641.0,0.060043]
[1641742237047,0.00083459,41646.0,41642.0,0.0481]
[1641742237247,3.27157697,41650.0,41643.0,0.04308999]
[1641742237448,0.27943938,41652.0,41643.0,0.0481]
[1641742237746,0.27943938,41652.0,41645.0,0.00114483]
[1641742237747,0.03020808,41646.0,41645.0,0.00114483]
[1641742238005,0.03020808,41646.0,41645.0,1.48855482]
[1641742238205,0.00116208,41652.0,41645.0,0.43845482]
[1641742238507,0.00116208,41652.0,41651.0,0.00105407]
[1641742238704,0.00116208,41652.0,41651.0,0.38878398]
[1641742238905,0.00116208,41652.0,41651.0,0.46308384]
[1641742239203,0.00116208,41652.0,41651.0,0.46187383]
[1641742239405,0.00116208,41652.0,41651.0,0.46302271]
[1641742239605,0.00116208,41652.0,41651.0,0.50194574]
[1641742239806,0.07549674,41651.0,41641.0,0.36146082]
[1641742240004,0.07549674,41651.0,41641.0,0.00118128]
[1641742240206,0.0001,41647.0,41625.0,0.26018668]
[1641742240407,0.00011001,41632.0,41626.0,0.9807]
[1641742240603,0.28367441,41631.0,41630.0,0.00124186]
[1641742240804,0.0001,41647.0,41646.0,0.08480752]
[1641742240805,0.40939058,41647.0,41646.0,0.08480752]
[1641742241004,0.94901082,41647.0,41630.0,0.00124186]
[1641742241209,0.1,41639.0,41630.0,0.00114186]
[1641742241405,0.00011001,41633.0,41620.0,0.37807991]
[1641742241649,0.00011001,41633.0,41630.0,0.046]
[1641742242052,0.387592,41632.0,41630.0,0.046]
[1641742242350,0.387592,41632.0,41630.0,0.0459]
[1641742242550,0.387592,41632.0,41630.0,0.0458]
[1641742243150,0.0001,41631.0,41630.0,0.0458]
[1641742243552,0.0001,41631.0,41630.0,0.433392]
[1641742243750,0.0001,41631.0,41630.0,0.439592]
[1641742243950,0.0001,41631.0,41630.0,0.052]
[1641742244550,0.0001,41631.0,41621.0,0.43469761]
[1641742244756,0.29221711,41629.0,41622.0,0.387592]
[1641742245151,0.29221711,41629.0,41623.0,0.34118832]
[1641742245392,0.0001,41631.0,41624.0,0.447664]
[1641742245592,0.0001,41631.0,41624.0,0.64892349]
[1641742245792,0.0001,41631.0,41625.0,0.19025931]
[1641742245994,1e-08,41635.0,41629.0,0.38880854]
[1641742246194,1e-08,41635.0,41633.0,0.38887699]
[1641742246394,1e-08,41635.0,41634.0,0.387592]
[1641742246798,1e-08,41635.0,41629.0,0.1]
[1641742246995,1e-08,41635.0,41630.0,0.387592]
[1641742247397,1e-08,41635.0,41628.0,0.00120444]
[1641742247595,1e-08,41635.0,41633.0,0.25130111]
[1641742247795,1e-08,41635.0,41634.0,0.387592]
[1641742248095,1e-08,41635.0,41630.0,0.028]
[1641742248395,1e-08,41635.0,41631.0,0.387592]
[1641742248595,1e-08,41635.0,41631.0,0.382592]
[1641742248796,0.30706131,41633.0,41631.0,0.382592]
[1641742248996,1e-08,41635.0,41631.0,0.382592]
[1641742249254,0.00032531,41644.0,41631.0,0.382592]
[1641742249255,0.10154925,41648.0,41646.0,0.0121604]
[1641742249455,0.38780201,41647.0,41646.0,0.0121604]
[1641742249652,0.48780201,41647.0,41646.0,0.0121604]
[1641742249854,0.75497786,41647.0,41646.0,0.0121604]
[1641742250252,0.65497786,41647.0,41646.0,0.0121604]
[1641742250652,0.75497786,41647.0,41646.0,0.0121604]
[1641742251052,0.75497786,41647.0,41640.0,0.00018588]
[1641742251255,0.1,41641.0,41640.0,0.00018588]
[1641742251453,0.487488,41641.0,41640.0,0.00018588]
[1641742251652,0.687488,41641.0,41640.0,0.00018588]
[1641742251852,0.387488,41641.0,41640.0,0.00018588]
[1641742252052,0.587488,41641.0,41640.0,0.00018588]
[1641742252253,0.587488,41641.0,41638.0,0.00018591]
[1641742252254,0.31809452,41640.0,41638.0,0.00018591]
[1641742252454,0.04929,41639.0,41638.0,0.00018591]
[1641742253297,0.04929,41639.0,41636.0,0.00018592]
[1641742253699,0.07229,41639.0,41636.0,0.00018592]
[1641742254099,0.387478,41638.0,41636.0,0.00018592]
[1641742254500,0.387478,41638.0,41635.0,0.00018593]
[1641742254700,1.4150442,41636.0,41635.0,0.00018593]
[1641742254899,1.8025222,41636.0,41635.0,0.00018593]
[1641742255100,1.9525222,41636.0,41635.0,0.00018593]
[1641742255302,1.985778,41636.0,41635.0,5.93e-06]
[1641742255501,0.19999075,41633.0,41608.0,0.0007442]
[1641742255701,0.1,41617.0,41608.0,0.00071744]
[1641742255901,0.1,41611.0,41608.0,0.00071744]
[1641742256102,0.0983,41610.0,41608.0,0.00071744]
[1641742256301,0.06141649,41616.0,41608.0,0.00071744]
[1641742256302,0.30929391,41612.0,41608.0,0.00071744]
[1641742256503,0.6,41609.0,41608.0,0.00071744]
[1641742256752,0.13460141,41606.0,41592.0,0.35268174]
[1641742256952,0.1,41603.0,41592.0,0.35268174]
[1641742257150,0.00124343,41605.0,41591.0,0.004]
[1641742257351,0.13460141,41606.0,41601.0,0.19967289]
[1641742257550,0.13460141,41606.0,41595.0,0.0012147]
[1641742257751,0.13460141,41606.0,41596.0,0.387551]
[1641742257955,0.13460141,41606.0,41597.0,0.35268174]
[1641742258151,0.13460141,41606.0,41605.0,0.59896699]
[1641742258354,0.13460141,41606.0,41605.0,0.24896699]
[1641742258551,0.13460141,41606.0,41605.0,0.63651799]
[1641742258752,0.13460141,41606.0,41605.0,0.63777794]
[1641742258952,1.41e-06,41606.0,41605.0,0.99045968]
[1641742259153,0.9851,41624.0,41605.0,1.00158669]
[1641742259354,0.00121633,41623.0,41605.0,0.40394169]
[1641742259552,0.00121633,41623.0,41605.0,0.50394169]
[1641742259753,0.00121633,41623.0,41605.0,0.35394169]
[1641742259957,0.1,41613.0,41599.0,0.35268174]
[1641742260157,0.25642492,41606.0,41598.0,0.27002202]
[1641742260406,0.25642492,41606.0,41598.0,0.0012914]
[1641742261006,1.6388804,41602.0,41598.0,0.0012914]
[1641742261206,0.387478,41601.0,41600.0,0.00018366]
[1641742261609,0.487478,41601.0,41600.0,0.00018366]